{"text_format":"1","workbook":"xlsx","n_sheets":6,"sheets":["Damer Elite","Herrer Elite","Herrer A","Herrer Veteran","Herrer B","Damer A"],"not_rendered":{"charts":0,"images":0,"macros":0,"external_links":0,"defined_names":0,"comments":0,"pivot_tables":0},"unopened":[],"bounds":{"document_bytes":16777216,"sheet_cells":100000,"rows_first":2000,"rows_last":500,"rows_between":2000,"halvings":0,"cell_chars":16384,"cell_head_chars":4096},"cells_cut":0,"cells_raw":0,"read":"whole","date_system":"1900"}

{"sheet":"Damer Elite","index":0,"n_rows":28,"n_cols":25,"rows_kept":28,"cut":false,"hidden":false,"merged":[]}
["Konica Minolta NC DAMER ELITE "]
[]
["Navn","F.år","Klubb","Team","Sum","Gjerpenkollen 19.06","Midtstubakken 20.06","Midtstubakken 21.06","Midtstubakken 05.09","Midtstubakken 06.09","Granåsen 10.10","Granåsen 11.10","Midtstubakken 07.11","Midtstubakken 08.11","Vikersund 19.12","Midtstubakken 16.01","Midtstubakken 17.01","Steinfjellbakken 23.01","Steinfjellbakken 24.01","Holmenkollen 30.01","Holmenkollen 31.01","Bjørklibakken 27.02","Bjørklibakken 28.02","NM Hamran 08.03","Skarbakken 19.03"]
["Anikken Mork",1991,"Ready","Kollenhopp",{"$f":"SUM(F4:Y4)","v":800},60,50,50,80,80,60,60,100,100,null,80,80]
["Tonje Bakke",1998,"Elverum Hopp","NTG ",756,45,60,60,100,100,40,null,null,null,60,45,50,null,null,80,80,null,null,36]
["Silje Opseth",1999,"Holeværingen IL","NTG",745,50,45,null,null,null,50,null,80,80,80,100,100,null,null,null,null,null,null,100,60]
["Anna O Strøm",1998,"Alta IF","NTG",645,null,null,null,null,null,45,null,60,60,100,60,60,null,null,100,100,null,null,60]
["Karoline Andrea Røstad",1995,"Skogn IL","Trønderhopp",606,null,null,null,null,null,null,null,null,null,null,40,40,100,100,null,null,100,100,26,100]
["Line Jahr",1984,"Vikersund IF","Lillehammerhopp",540,80,100,100,null,null,80,100,null,null,null,null,null,null,null,null,null,null,null,80]
["Maren Lundby",1994,"Kolbukameratene","Lillehammerhopp",440,100,80,80,null,null,100,80]
["Thea Sofie Kleven",2000,"Gjerpenkollen","Flying Team Vikersund",295,null,null,null,null,null,null,null,50,50,50,50,45,null,null,null,null,null,null,50]
["Hanna Midtsundstad",1999,"Vaaleer IF","NTG",247,null,null,null,null,null,null,null,45,45,45,36,36,null,null,null,null,null,null,40]
["Thea Minyan Bjørseth",2003,"Lensbygda sp.klubb",null,45,null,null,null,null,null,null,null,null,null,null,null,null,null,null,null,null,null,null,45]
["Karoline Bjerke Skatvedt",2000,"Trøgstad Skiklubb"," ",40,40]
["Maria Beisvåg",1998,"IL Jardar","Kollenhopp",32,null,null,null,null,null,null,null,null,null,null,32]
["Gyda Westvold Hansen",2002,"Nansen IL","Hedmarkhopp",32,null,null,null,null,null,null,null,null,null,null,null,null,null,null,null,null,null,null,32]
["Emilie Serina Røstad",2000,"Skogn IL","Trønderhopp",29,null,null,null,null,null,null,null,null,null,null,null,null,null,null,null,null,null,null,29]
["Ingebjørg Saglien Bråten",1999,"Etnedal Skilag",null,24,null,null,null,null,null,null,null,null,null,null,null,null,null,null,null,null,null,null,24]
["Pernille Kvernmo",2000,"Steinkjer Skiklubb","Trønderhopp",22,null,null,null,null,null,null,null,null,null,null,null,null,null,null,null,null,null,null,22]
["Thea Øihaugen",2001,"Gausdal Skilag",null,20,null,null,null,null,null,null,null,null,null,null,null,null,null,null,null,null,null,null,20]
["Mari Leinan Lund",1999,"Tolga IL","Hedmarkhopp",18,null,null,null,null,null,null,null,null,null,null,null,null,null,null,null,null,null,null,18]
["Eirin Kvandal",2001,"Mosjøen IL",null,16,null,null,null,null,null,null,null,null,null,null,null,null,null,null,null,null,null,null,16]
["Rebecca Eggen",1999,"Røykenhopp","Flying Team Vikersund",15,null,null,null,null,null,null,null,null,null,null,null,null,null,null,null,null,null,null,15]
["Julie Melø",1999,"Namdalseid IL","Trønderhopp",14,null,null,null,null,null,null,null,null,null,null,null,null,null,null,null,null,null,null,14]
["Ingrid Eggen",1999,"Nansen IL","Hedmarkhopp",13,null,null,null,null,null,null,null,null,null,null,null,null,null,null,null,null,null,null,13]
["Madeleine Kvam Mathisen",1999,"Holeværingen IL",null,12,null,null,null,null,null,null,null,null,null,null,null,null,null,null,null,null,null,null,12]
["Marte Leinan Lund",2001,"Tolga IL","Hedmarkhopp",11,null,null,null,null,null,null,null,null,null,null,null,null,null,null,null,null,null,null,11]
["Hannah Taubert",1999,"Namsos IL",null,10,null,null,null,null,null,null,null,null,null,null,null,null,null,null,null,null,null,null,10]

{"sheet":"Herrer Elite","index":1,"n_rows":62,"n_cols":31,"rows_kept":62,"cut":false,"hidden":false,"merged":[]}
["Konica Minolta NC  HERRER Elite "]
["Navn","F.år","Klubb","Team","Sum","Gjerpenkollen 1906","Midtstubakken 20.06","Midtstubakken 21.06","Lysgårdsbakken 22.08","Lysgårdsbakken 23.08","Midtstubakken 05.09","Midtstubakken 06.09","Granåsen 10.10","Granåsen 11.10","Midtstubakken 07.11","Midtstubakken 08.11","Renabakken 28.11","Renabakken 29.11","Vikersund 19.12","Vikersund 20.12","Granåsen 09.01","Midtstubakken 16.01","Midtstubakken 17.01","Steinfjellbakken 23.01","Steinfjellbakken 24.01","NM Lysårdsbakken 26.01","Holmenkollen 30.01","Holmenkollen 31.01","Bjørklibakken 27.02","Bjørklibakken 28.02","Skarbakken 19.03"]
["Halvor Egner Granerud",1996,"Asker SK","Kollenhopp",{"$f":"SUM(F3:AH3)","v":928},29,29,12,50,60,26,100,24,29,32,32,80,80,null,null,null,null,null,null,null,45,100,100,null,null,100]
["Joacim Ødegård Bjøreng",1995,"Røykenhopp","Flyingteam Vikersund",795,15,16,32,80,100,null,null,80,80,40,40,40,100,12,60,100]
["Marius Lindvik",1998,"Rælingen Skiklubb","Kollenhopp",760,null,null,null,40,29,15,60,26,24,29,60,29,50,100,12,null,60,80,null,null,16,80,50]
["Phillip Sjøen",1995,"Bækkelaget SK","Kollenhopp",751,36,100,60,null,null,null,null,null,null," ",null,32,60,80,100,null,80,100,null,null,22,36,45]
["Joakim Aune",1993,"Byåsen IL","Trønderhopp",742,null,null,null,26,36,29,null,32,null,26,36,36,26,45,80,50,10,60,80,80,8,60,22]
["Sigurd Nymoen Søberg",1994,"Furnes Skiløperfor.","Lillehammerhopp",630,11,15,13,60,50,40,8,16,22,14,11,24,15,32,40,36,24,13,null,null,10,40,36,null,100]
["Fredrik Bjerkengen",1988,"Kolbukameratene","Lillehammerhopp",620,26,24,24,100,80,45,9,40,26,100,1,50,45,null,null,null,null,null,null,null,50]
["Richard Haukedal",1996,"Bækkelaget SK","Kollenhopp",586,9,22,15,29,32,12,36,18,20,9,14,18,16,60,45,24,32,22,18,26,5,null,null,24,80]
["Tord Markussen Hammer",1988,"Tromsø Skiklub","Trønderhopp",561,null,null,null,null,null,null,null,null,null,16,20,45,36,40,22,26,26,26,60,50,null,29,40,80,45]
["Jarl Magnus Riiber",1997,"Heming IL","Kollenhopp",551,45,null,45,36,null,100,null,null,null,45,100,null,null,null,null,80,100]
["Jesper Ødegaard",1998,"Gausdal Skilag","NTG",534,14,20,20,null,null,13,29,null,null,7,4,11,8,36,20,40,40,40,45,null,7,50,80,null,null,50]
["Joachim Hauer",1991,"Bækkelaget SK","Kollenhopp",531,22,32,80,null,null,null,null,80,45,60,80,100,32]
["Tom Hilde",1987,"Asker SK","Kollenhopp",513,60,40,29,45,45,60,18,36,36,80,50,null,null,null,null,null,null,null,null,null,14]
["Lars Brodshaug Berger",1995,"Eidsvoll Værk SK","Lillehammerhopp",499,24,18,22,null,null,22,50,20,null," ",null,20,20,10,29,32,15,11,null,null,26,null,60,60,60]
["Are Sumstad",1996,"Sør-Fron IL","NTG",491,5,6,6,null,null,24,45,null,15,24,26,26,40,null,14,29,45,36,50,100]
["Espen Røe",1993,"Tolga IL","Trønderhopp",482,null,null,null,32,40,80,80,29,32,36,29,60,24,null,null,null,null,null,null,null,40]
["Daniel Andre Tande",1994,"Kongsberg IF","Flyingteam Vikersund",431,40,60,100,null,null,20,10,100,100," ",null,null,null,null,null,null,null,null,null,null,1]
["Kenneh Henningsmo Fredheim",1997,"Nansen IL","Trønderhopp",422,null,null,null,null,null,10,15,null,18," ",7,16,7,13,26,16,12,16,40,60,20,32,32,32,50]
["Matias Braathen",1996,"Øvrevoll Hosle IL","Kollenhopp",391,null,null,null,null,null,null,null,15,16,18,12,22,11,11,32,null,36,29,32,29,null,24,14,50,40]
["Anders Fannemel",1991,"Hornindal IL","Lillehammerhopp",351,80,80,50,null,null,null,null,45,60," ",null,null,null,null,null,null,null,null,null,null,36]
["Kenneth Gangnes",1989,"Kolbukameratene","Lillehammerhopp",339,100,50,36,null,null,null,null,3,50," ",null,null,null,null,null,null,null,null,null,null,100]
["Andreas Stjernen",1988,"Sprova","Trønderhopp",299,null,null,null,null,null,50,40,50,4,50,45,null,null,null,null,null,null,null,null,null,60]
["Robert Johansson",1990,"Søre Ål IL","Lillehammerhopp",296,16,26,26,null,null,11,22,2,10,13,16,14,18,20,13,60,null,null,null,null,29]
["Jørgen Berg",1997,"Byåsen IL","Trønderhopp",296,null,null,null,null,null,null,null,13,12," ",null,null,null," ",null,null,13,45,24,24,null,13,15,45,32,60]
["Chrisian Ingebrigtsen",1994,"Byåsen Skiklub","Trønderhopp",286,null,null,null,null,null,null,null,null,null,null,null,null,null,null,null,null,null,null,26,22,32,14,20,100,36,36]
["Carl Henning Lippestad",1998,"Bækkelaget Skiklubb","Kollenhopp",268,null,null,null,null,null,null,null,null,7,10,6,6,5,24,36,20,29,36,22,32,12,11,12]
["Rune Velta",1989,"Lommedalen IL","Kollenhopp",255,50,45,40,null,null,null,null,null,2," ",null,null,null,50,50,null,null,null,null,null,18]
["Jonas Sloth Sandell",1995,"Tromsø Skiklub","Trønderhopp",247,null,null,null,null,null,null,null,null,null,null,null,null,null,null,null,null,16,12,16,20,null,18,16,40,29,80]
["Idar Marø",1995,"Alta IF","Kollenhopp",244,8,12,10,14,15,5,26,null,null,12,24,9,10,29,24,12,14,20]
["Sondre Ringen",1996,"Bækkelaget Skiklubb","Kollenhopp",238,null,null,null,null,null,null,null,null,null,null,null,null,null,null,null,null,60,50,36,45,3,26,18]
["Robin Pederen",1996,"Stålkameratne IL","Trønderhopp",236,null,null,null,null,null,null,null,10,11," ",null,null,29,null,null,22,22,24,100,18]
["Jonas Gropen Søgård",1996,"Nordbygda/Løten Ski","Lillehammerhopp",234,18,13,16,null,null,36,null,8,1,8,22,15,22,18,15,10,18,14]
["Johann Andrè Forfang",1995,"Tromsø Skiklub","Trønderhopp",{"$f":"SUM(F35:AH35)","v":228},32,36,18,null,null,null,null,22,40," ",null,null,null,null,null,null,null,null,null,null,80]
["Oscar Alexander Hafslund",1997,"Nordbygda/Løten Ski","NTG",213,null,null,null,null,null,null,null,null,null,null,null,null,null,null,null,null,20,18,29,40,null,22,29,29,26]
["Stian Andrè Skinnes",1991,"Gjerpenkollen hoppkubb","Lillehammerhopp",212,20,11,14,11,26,18,11,null,null,12,10,8,14,15,9,9,null,null,null,null,24]
["Jørgen Madsen",1994,"Skimt","Kollenhopp",202,null,null,null,12,18,14,32,9,13,22,15,4,13,14,11,14,null,null,null,null,11]
["Oliver Dahl",1997,"Byåsen IL","Trønderhopp",200,null,null,null,null,null,null,null,null,null,null,null,null,null,null,null,null,11,16,20,36,null,20,13,22,22,40]
["Rishi Sæther",1997,"Liabygda IL","NTG",189,13,14,4,20,24,8,16,null,null,6,13,13,12,null,18,15,null,null,null,null,13]
["Fredrik Eirinsønn Villumstad",1999,"Skimt IL","Kollenhopp",181,null,null,null,null,null,null,null,5,5,20,18,10,1,26,null,13,null,null,null,null,2,12,24,null,null,45]
["Andreas Granerud Buskum",1996,"Lensbygda Sp.klubb","Lillehammerhopp",157,12,8,8,15,14,9,20,null,null,5,9,2,6,null,null,null,null,null,null,null,null,null,null,29,20]
["Mats Bjerke Myhren",1997,"Søre Ål IL","NTG",118,null,null,null,null,null,null,null,14,null,3,null,null,null,null,null,null,null,null,null,null,15,16,10,36,24]
["Kristian Lian",1994,"Ivrig IL","Lillehammerhopp",109,null,null,null,null,null,null,null,12,null,15,8,12,4,22,18,8,null,10]
["Kristian Stensgård",1996,"Søre Ål IL","Lillehammerhopp",101,6,5,9,18,22,7,14,null,null,2,2,7,9]
["Alexander Henningsen",1994,"Tromsø Skiklub","Lillehammerhopp",96,4,10,5,null,null,32,24,null,9,4,3,3,2]
["Thomas Aasen Markeng",2000,"Lensbygda Sportsklubb",null,77,null,null,null,null,null,null,null,6,null," ",null,null,null,null,null,null,null,null,null,null,null,45,26]
["Bendik Netland Huløen",1996,"Oddersjå SSK","Lillehammerhopp",76,7,9,7,22,13,6,12,null,null," "]
["Adrian Livelten",1994,"IL Hjelseth-Fram","Lillehammerhopp",71,10,7,11,13,16,null,13,1,null," "]
["Anders Ladehaug",null,"Nordre Land IL","NTG",62,null,null,null,null,null,null,null,null,null,null,null,null,null,null,null,null,null,null,null,null,6,15,9,null,null,32]
["Jostein Loe",1994,"Raufoss IL","Lillehammerhopp",45,null,null,null,null,null,null,null,null,8," ",null,null,null,16,10,11]
["Sverre Aas Myhr",1998,"Søre Ål IL","NTG",40,null,null,null,16,20,4,null,null,null," "]
["Harald Riiber",1995,"Heming IL","Kollenhopp",40,null,null,null,24,null,16,null,null,null," "]
["Jan Fuhre",1991,"Vikersund IF","Trønderhopp",22,null,null,null,null,null,null,null,11,6," ",5," "]
["Mats Sagbakken",1999,"Furnes Skiløperfor.","NTG",21,null,null,null,null,null,null,null,null,null,null,null,null,null,null,null,null,null,null,null,null,null,10,11]
["Peder Nævestad Pedersen",1995,"Byåsen Skiklub","Trønderhopp",14,null,null,null,null,null,null,null,null,14," "]
["Christian Brenna",1995,"Hakadal IL","Kollenhopp",9,null,null,null,null,null,null,null,null,null,1,null,5,3]
["Oscar P Westerheim",null,"Bækkelaget Skiklubb","Kollenhopp",9,null,null,null,null,null,null,null,null,null,null,null,null,null,null,null,null,null,null,null,null,9]
["Knut Jokerud Strand",1996,"Vikersund IF","Flying Team Vikersund",7,null,null,null,null,null,null,null,7,null," "]
["Jakob Tjåland Randen",1996,"Folldal IL","NTG",4,null,null,null,null,null,null,null,4,null," "]
["Jonas Viken",null,"Steinkjer Skiklubb","Trønderhopp",4,null,null,null,null,null,null,null,null,null,null,null,null,null,null,null,null,null,null,null,null,4]
["Espen Jacobsen",1998,"Orkdal IL","Trønderhopp",3,null,null,null,null,null,null,null,null,3," "]

{"sheet":"Herrer A","index":2,"n_rows":65,"n_cols":27,"rows_kept":65,"cut":false,"hidden":false,"merged":[]}
["Konica Minolta NC  HERRER A  ",null,null,null,"Sum","Gjerpenkollen 19.06","Midtstubakken 20.06","Midtstubakken 21.06","Lysgårdsbakken 22.08","Lysgårdsbakken 23.08","Midtstubakken 05.09","Midtstubakken 06.09","Midtstubakken 07.11","Midtstubakken 08.11","Renabakken 28.11","Renabakken 29.11","Vikersund 19.12","Granåsen 09.01","Midtstubakken 16.01","Midtstubakken 17.01","Steinfjellbakken 23.01","Steinfjellbakken 24.01","Holmenkollen 30.01","Holmenkollen 31.01","Bjørklibakken 27.02","Bjørklibakken 28.02","Skarbakken 19.03"]
["Jostein Loe",1994,"Raufoss IL"," ",{"$f":"SUM(F2:AF2)","v":710},36,40,24,26,10,15,13,60,60,80,100,null,null,24,22,null,null,60,100,null,null,40]
["Oscar P Westerheim",1996,"Bækkelaget Skiklubb","Kollenhopp",573,null,32,16,50,45,26,45,16,15,22,18,null,18,50,29,null,null,50,36,60,45]
["Peder Nævestad Pedersen",1995,"Byåsen Skiklub","Trønderhopp",565,null,null,null,80,50,5,26,null,null,36,50,18,29,100,15,26,18,null,null,22,40,50]
["Espen Jacobsen",1998,"Orkdal IL","Trønderhopp",532,null,null,null,29,29,45,36,50,16,26,9,20,11,3,4,40,80,5,29,null,null,100]
["Mats Bjerke Myhren",1997,"Søre Ål IL","NTG",530,22,29,20,6,24,36,9,40,18,29,26,null,60,80,45,60,26]
["Kristian Lian",1994,"Ivrig IL","Lillehammerhopp",511,45,100,60,36,60,80,100,null,null,null,null,null,null,null,null,null,null,12,18]
["Fredrik Eirinsønn Villumstad",1999,"Skimt IL","Kollenhopp",483,40,60,50,16,12,50,20,null,null,null,null,null,null,60,80,45,50]
["Carl Henning Lippestad",1998,"Bækkelaget Skiklubb","Kollenhopp",466,100,80,100,14,22,100,50]
["Knut Jokerud Strand",1996,"Vikersund IF","Flying Team Vikersund",450,60,50,40,null,null,null,null,14,20,16,14,null,7,4,16,null,null,22,15,36,100,36]
["Kjell Andreas Næsvold",1996,"Røykenhopp","Flying Team Vikersund",441,20,24,29,9,18,32,12,36,45,50,32,24,24,40,12,null,null,14,20]
["Ole M S Nedrejord",1996,"Nordlys IL","Lillehammerhopp",418,null,null,null,null,null,null,null,null,null,null,null,29,32,26,50,24,29,80,50,80,18]
["Anders Ladehaug",1999,"Nordre Land IL","NTG",399,null,null,null,null,null,null,null,8,14,8,20,40,null,29,100,80,100]
["Mats Sagbakken",1999,"Furnes Skiløperforening","NTG",391,null,null,null,null,null,null,null,26,24,12,36,22,36,50,40,100,45]
["Oliver Dahl",1997,"Byåsen IL","Trønderhopp",371,null,null,null,45,40,22,null,13,10,80,45,36,80]
["Martin Sommerstad",1998,"Raufoss IL","NTG",368,26,14,36,4,15,12,15,12,8,null,null,null,null,6,9,20,32,29,80,10,40]
["Rishi Sæther",1997,"Liabygda IL","Lillehammerhopp",346,null,null,null,null,null,null,null,null,null,null,null,null,null,36,40,50,36,36,26,36,60,26]
["Thomas Aasen Markeng",2000,"Lensbygda Sportsklubb",null,344,null,null,null,32,32,40,40,100,100]
["Erik Johannesen",1999,"Botne SK","Flying Team Vikersund",343,null,null,null,null,null,null,null,7,29,18,15,null,9,8,13,null,null,24,40,50,50,80]
["Jørgen Berg",1997,"Byåsen IL","Trønderhopp",334,null,null,null,null,null,16,80,32,50,20,60,50,26]
["Sverre Aas Myhr",1998,"Søre Ål IL","NTG",330,null,null,null,null,null,null,null,15,13,32,11,32,22,12,3,29,40,13,14,22,40,32]
["Jonas Sloth Sandell",1995,"Tromsø Skiklub","Trønderhopp",320,null,null,null,null,null,null,null,null,null,40,80,100,100]
["Robin Pederen",1996,"Stålkameratne IL","Trønderhopp",308,null,null,null,13,8,11,16,80,80,100]
["Oscar Alexander Hafslund",1997,"Nordbygda/Løten Ski","NTG",294,null,null,null,15,36,13,null,29,45,11,40,60,45]
["Jonas Viken",1997,"Steinkjer Skiklubb","Trønderhopp",293,null,null,null,null,null,14,22,null,null,10,13,26,15,9,10,32,24,32,32,16,22,16]
["Sondre Ringen",1996,"Bækkelaget Skiklubb","Kollenhopp",286,null,20,18,20,20,8,24,50,null,9,22,45,50]
["Stian Andrè Skinnes",1991,"Gjerpenkollen hoppkubb","Lillehammerhopp",285,null,null,null,null,null,null,null,null,null,null,null,null,null,22,20,null,null,45,60,29,80,29]
["Christian Brenna",1995,"Hakadal IL","Kollenhopp",272,50,45,32,22,14,22,29,null,null,null,null,3,null,6,5,15,14,15]
["Adrian Livelten",1994,"IL Hjelseth-Fram","Lillehammerhopp",270,null,null,null,null,null,null,null,20,45,null,null,12,40,18,12,22,20,11,10,null,null,60]
["Matias Braathen",1996,"Øvrevoll Hosle IL","Kollenhopp",267,null,24,45,24,80,80,14]
["Christian Corody",1993,"IL Jardar","Kollenhopp",226,24,15,15,8,6,6,10,9,9,7,10,15,16,14,24,null,null,16,22]
["Andreas Granerud Buskum",1996,"Lensbygda Sp.klubb","NTG",203,null,null,null,null,null,null,null,null,null,null,null,2,13,32,60,36,60]
["Jonas Langgård",1993,"Hurdal IL"," ",201,32,null,26,11,9,4,null,26,32,24,24,13]
["Kenneh Henningsmo Fredheim",1997,"Nansen IL","Trønderhopp",{"$f":"SUM(F34:AF34)","v":200},null,null,null,100,100]
["Nikolai Aasberg",1998,"Røykenhopp","Flying Team Vikersund",198,80,13,22,18,18,29,18]
["Jakob Tjåland Randen",1996,"Folldal IL","NTG",197,29,12,13,10,11,7,null,null,null,45,29,14,12,13,2]
["Steffen Jeremiassen",1997,"Skimt IL","Kollenhopp",186,null,18,null,40,13,18,32,11,12,13,16,5,null,null,8]
["Kristian Stensgård",1996,"Søre Ål IL","Lillehammerhopp",149,null,null,null,null,null,null,null,null,null,null,null,6,14,20,14,null,null,null,null,45,26,24]
["Christian Røste Solberg",1999,"IL Jardar","Kollenhopp",141,null,null,null,null,null,null,null,null,null,null,null,16,6,16,32,null,null,18,9,15,29]
["Peder Skjæret Strømhaug",1998,"Folldal IL","NTG",138,null,null,null,5,5,10,8,null,null,null,null,4,5,null,null,18,16,9,7,11,26,14]
["Andreas Varsi Breivik",1997,"Tromsø Skiklub","Trønderhopp",127,null,null,null,null,null,null,null,null,null,null,null,null,null,null,null,null,null,6,11,45,20,45]
["Bendik Netland Hulløen",1996,"Oddersjaa SSK","NTG",118,null,null,null,null,null,null,null,20,26,14,12,9,20,11,6]
["Christian Inngjerdingen",1996,"Øvrevoll Hosle IL","Kollenhopp",116,null,36,80]
["Jonas Gropen Søgård",1996,"Nordbygda/Løten Ski","Lillehammerhopp",108,null,null,null,null,null,null,null,null,null,null,null,null,null,null,null,null,null,26,45,26,11]
["Sondre Vestøl Bråtane",1996,"Songe Skiklubb","Trønderhopp",106,null,null,null,60,26,9,11]
["Stian Danielsen",1996,"Alta IF","Trønderhopp",106,null,null,null,null,null,24,60,null,null,null,null,null,null,null,null,null,22]
["Lars Brodshaug Berger",1995,"Eidsvold Værks Skiklub","Lillehammerhopp",100,null,null,null,null,null,null,null,null,null,null,null,null,null,null,null,null,null,100]
["Sigurd Nymoen Søberg",1994,"Furnes Skiløperforening","Lillehammerhopp",100,null,null,null,null,null,null,null,null,null,null,null,null,null,null,null,null,null,null,null,100]
["Jørgen Madsen",1994,"Skimt","Kollenhopp",89,null,null,null,null,null,null,null,null,null,null,null,null,null,7,26,null,null,40,16]
["Anders Sandberg Haare",1999,"Vikersund IF","Flying Team Vikersund",85,null,null,null,null,null,null,null,22,22,15,8,8,null,10]
["Jan Fuhre",1991,"Vikersund IF","Trønderhopp",84,null,null,null,null,null,null,null,null,null,null,null,80,4]
["Idar Marø",1995,"Alta IF","Kollenhopp",84,null,null,null,null,null,null,null,null,null,null,null,null,null,null,null,null,null,20,24,24,16]
["Johannes Pettersen",1998,"Tromsø Skiklub","Trønderhopp",81,null,null,null,null,null,null,null,null,null,null,null,null,null,1,null,13,15,null,null,18,12,22]
["Epen Alexander Eriksen",1994,"Tromsø kiklub","Trønderhopp",80,null,null,null,null,null,null,null,null,null,null,null,null,null,2,2,16,12,10,12,13,13]
["Leif Mariu Hagemoen",1995,"Gausdal Skilag","Lillehammerhopp",68,null,null,null,null,null,null,null,null,null,null,null,null,null,null,null,null,null,8,13,12,15,20]
["Bjørnar Kristiansen Malm",1995,"Byåsen IL","Trønderhopp",61,null,null,null,null,null,null,null,null,null,null,null,null,null,null,null,null,null,7,8,14,14,18]
["Andreas Hoff",1993,"Raufoss IL","Lillehammerhopp",55,18,16,14,7]
["Jens Fredrik Loe",1996,"Byåsen IL","Trønderhopp",42,null,null,null,null,null,null,null,null,null,null,null,7,8,null,null,14,13]
["Mats Søhagen Berggaard",1995,"Ringkollen Skiklubb","Flying Team Vikersund",35,null,null,null,null,null,null,null,null,null,null,null,null,null,15,20]
["Jens Schøien Øvregård",1996,"Vålerenga Ski","Kollenhopp",26,null,26]
["Jonas Bratlien",1999,"Bøverbru IL","NTG",21,null,null,null,null,null,null,null,10,11]
["Sander Kleven",1998,"Gjerpenkollen Hoppklubb","Flying Team Vikersund",21,null,null,null,null,null,null,null,null,null,null,null,11,10]
["Håvard Svingen Lunnan",1996,"Skatval IL","Trønderhopp",19,null,null,null,12,7]
["Alexander Henningsen",1994,"Tromsø Skiklub","Lillehammerhopp",18,null,null,null,null,null,null,null,null,null,null,null,11,null,null,7]
["Olof Lundgren",1997,"Byåsen IL","Trønderhopp",15,null,null,null,null,null,null,null,null,null,null,null,null,null,null,null,null,null,null,null,null,null,15]

{"sheet":"Herrer Veteran","index":3,"n_rows":21,"n_cols":18,"rows_kept":21,"cut":false,"hidden":false,"merged":[]}
["Konica Minolta NC  HERRER C  "]
["Navn","Klubb","Team",null,"Sum","Gjerpenkollen 19.06","Midtstubakken 20.06","Midtstubakken 21.06","Midtstubakken 05.09","Midtstubakken 06.09","Renabakken 28.11","Renabakken 29.11","Vikersund 19.12","Vikersund 20.12","Midtstubakken 16.01","Midtstubakken 17.01","Holmenkollen 30.01","Holmenkollen 31.01"]
["Ole Henning Holt","Sannidal",null,1967,{"$f":"SUM(F3:OA3)","v":765},null,null,45,100,80,100,100,100,80,null,null,80,80]
["Patrick Larsen","Pors IF",null,1982,670,50,80,100,80,100,null,null,null,null,null,100,60,100]
["Kurt Kristiansen","Trøgstad SK"," ",1984,630,100,100,80,60,null,null,null,60,null,60,60,50,60]
["Anders Bechmann","Skogn IL"," ",1972,530,80,60,60,45,60,null,null,null,100,80,null,null,45]
["Torry Åge Ringkilen","Skimt IL","Veteranhopp Norge",1958,423,29,36,36,29,32,null,null,45,60,40,40,36,40]
["Knut Bjerke","Rælingen Skiklubb","Veteranhopp Norge",1961,345,60,50,60,null,null,null,null,80,null,null,null,45,50]
["Arvid Lian","Ivrig IL"," ",1962,311,45,45,40,50,36,null,null,null,null,50,45]
["Ole Andreas Skatvedt","Trøgstad Skiklubb",null,1965,280,null,null,null,null,null,null,null,null,null,100,80,100]
["Per Espen Andersen","Øyestad IF","Sørlandshopp",1958,226,40,40,29,36,45,null,null,null,null,null,36]
["Arne Jens  Jørgensen","Horten Skiklubb","Veteranhopp Norge",1955,165,32,null,32,40,29,null,null,null,null,32]
["Geir Vethe","Kolbukmeratene IL",null,1977,95,null,null,null,null,null,null,null,null,null,45,50]
["Pål Markus Kalleberg","Østre Aker Skiklubb",null,1946,82,null,null,null,32,50]
["Stein Arne Hoel","Østre Aker Skiklubb",null,1957,62,null,null,null,26,null,null,null,null,null,36]
["Oddgeir Heimdahl","Raufoss IL",null,1979,50,null,null,null,null,null,null,null,50]
["Arnstein Hausberg Vatle","Trøgstad SK"," ",1962,47,26,null,21]
["Marius Thue","Raumnes & Årnes",null,1982,40,null,null,null,null,40]
["Kjell Iveland","Øvrebø IL",null,1964,40,null,null,null,null,null,null,null,null,null,null,null,40]
["Sigmund Epeland","Raumnes & Årnes",null,1951,36,null,null,null,null,null,null,null,null,null,null,null,null,36]
["Ivar Skårset","Søre Ål IL"," ",1955,36,36]

{"sheet":"Herrer B","index":4,"n_rows":91,"n_cols":28,"rows_kept":91,"cut":false,"hidden":false,"merged":[]}
["Konica Minolta NC Herrer B ",null,null,null,"Sum","Gjerpenkollen 19.06","Midtstubakken 20.06","Midtstubakken 21.06","Lysgårdsbakken 22.08","Lysgårdsbakken 23.08","Midtstubakken 05.09","Midtstubakken 06.09","Midtstubakken 07.11","Midtstubakken 08.11","Renabakken 28.11","Renabakken 29.11","Vikersund 19.12","Granåsen 09.01","Midtstubakken 16.01","Midtstubakken 17.01","Steinfjellbakken 23.01","Steinfjellbakken 24.01","Holmenkollen 30.01","Holmenkollen 31.01","Bjørklibakken 27.02","Bjørklibakken 28.02","Skarbakken 19.03","Skarbakken 20.03"]
["Sander Kleven",1998,"Gjerpenkollen Hoppklubb","Flying Team Vikersund",{"$f":"SUM(F2:AB2)","v":719},null,60,40,36,40,18,24,29,80,32,40,null,null,null,null,null,null,50,50,40,50,80,50]
["Anders Sandberg Håre",1999,"Vikersund IF","Flying Team Vikersund",707,50,40,36,50,60,45,45,null,null,null,null,null,null,null,null,null,null,45,80,60,100,36,60]
["Jonas Bratlien",1999,"Bøverbru IL","NTG",541,60,100,100,22,26,14,36,null,null,null,null,null,null,null,null,null,null,null,null,14,24,100,45]
["Benjamin Østvold",2001,"Lensbygda Sp.klubb","Kollenhopp",527,null,32,20,29,50,11,100,50,60,16,18,40,null,12,null,null,null,26,9,null,null,22,32]
["Leif Marius Hagemoen",1995,"Gausdal Skilag","Lillehammerhopp",511,null,null,null,null,null,null,null,100,45,null,null,26,null,80,60,100,100]
["Mats Sagbakken",1999,"Furnes Skiløperforening","Hedmarkhopp",510,100,80,60,80,100,40,50,null,null,null,null,null,null," "]
["Håvard Svingen Lunnan",1996,"Skatval Skilag","Trønderhopp",507,null,null,null,null,null,null,null,null,null,80,45,45,32,null,null,80,60,null,null,26,60,50,29]
["Andreas Varsi Breivik",1997,"Tromsø Skiklub","Trønderhopp",479,null,null,null,null,null,80,15,null,null,24,24,20,36,60,80,60,80]
["Marius Aas Hast",1999,"Mysen IF","Kollenhopp",464,null,20,24,14,16,2,29,36,36,20,20,null,45,45,40,null,null,40,45,32]
["Kristoffer Eriksen Sundal",2001,"Koll IL","Kollenhopp",441,null,24,29,null,null,16,11,80,100,null,null,32,null,100,null,null,null,29,20]
["Bjørnar Kristiansen Malm",1995,"Byåsen IL","Trønderhopp",414,null,null,null,45,24,29,5,null,null,null,null,36,40,50,100,45,40]
["Jonas Langgård",1993,"Hurdal IL",null,410,null,null,null,null,null,null,null,null,null,null,null,null,null,null,null,null,null,60,60,50,80,60,100]
["Erik Johannesen",1999,"Botne SK","Flying Team Vikersund",407,45,36,50,60,36,100,80]
["Christian Røste Solberg",1999,"IL Jardar","Kollenhopp",387,40,29,26,24,22,13,22,45,50,36,80]
["Håkon Leirvaag",1997,"Botne SK","NTG",374,null,null,null,null,null,12,9,32,32,26,60,13,null,18,40,20,45,null,36,16,15]
["Joachim Eriksrød",1998,"Siljan  IL","Team Telemark Hopp",350,16,15,13,15,18,10,10,26,22,10,16,24,null,26,32,null,null,22,14,29,32]
["Bendik Netland Hulløen",1996,"Oddersjaa SSK","NTG",340,null,null,null,null,null,null,null,null,null,null,null,null,null,null,null,null,null,100,100,100,40]
["Edvart Myrvang Bakke",1996,"Hedalen IL","Flying Team Vikersund",339,32,45,80,32,29,32,60,null,null,null,null,null,null,null,null,null,null,null,null,13,16]
["Håkon Kristoffer Tande",1999,"Kongsberg IF","Flying Team Vikersund",316,26,13,15,40,32,20,15,20,26,13,22,5,9,22,16,null,null,11,11]
["Eirik Fystro",1999,"Leira IL","NTG",298,null,null,null,null,null,null,null,16,18,22,13,9,16,20,24,24,26,14,16,15,26,15,24]
["Jacob Tjåland Randen",1996,"Folldal IL","NTG",294,null,null,null,null,null,null,null,null,null,null,null,null,null,null,null,null,null,32,40,80,36,26,80]
["John Andre Langkaas",1999,"Tyristubben IF","Team Telemark Hopp",286,18,18,14,13,14,5,18,14,15,60,32,18,null,16,15,null,null,10,6]
["Markus Månum",1998,"Raufoss IL"," ",285,80,50,45,null,null,26,26,null,null,null,null,null,null,29,29]
["Epen Alexander Eriksen",1994,"Tromsø Skiklub","Trønderhopp",260,null,null,null,null,null,null,null,null,null,40,100,60,60]
["Olof Lundgren",1997,"Byåsen IL","Trønderhopp",259,null,null,null,null,null,1,1,null,null,45,29,null,29,40,45,40,29]
["Mats Søhagen Berggaard",1995,"Ringkollen Skiklubb","Flying Team Vikersund",256,null,null,null,null,null,null,null,null,null,50,26,80,100]
["Lemet Johanas Nystad",1998,"Nordlys IL","NTG",256,null,null,null,16,15,5,12,11,13,11,8,6,15,7,18,32,20,13,12,22,20]
["Anders Ladehaug",1999,"Nordre Land IL",null,252,null,null,null,100,80,36,36]
["Edvin Madsen Kirknes",1999,"Steinkjer Skiklubb",null,215,null,null,null,null,null,null,null,null,null,null,null,11,22,32,50,50,50]
["Jens Fredrik Loe",1996,"Byåsen IL","Trønderhopp",214,null,null,null,null,null,24,40,null,null,100,50]
["Even Wålen Østerhaug",1999,"Sør ÅL IL","Lillehammerhopp",210,null,null,null,null,null,null,null,10,12,9,14,null,18,13,14,14,11,12,13,36,18,16]
["Sander Vossan Eriksen",2000,"Bækkelagets SK","Kollenhopp",201,null,22,22,null,null,7,16,18,24,null,null,10,null,36,null,null,null,20,26]
["Anders Bredesen Garberg",1997,"Orkdal IL","Trønderhopp",{"$f":"SUM(F34:AB34)","v":198},null,null,null,null,null,null,null,null,null,15,15,7,14,null,null,26,15,null,null,24,24,18,40]
["Alexander Henningsen",1994,"Tromsø Skiklub","Lillehammerhopp",197,null,null,null,null,null,null,null,null,null,null,null,null,null,null,null,null,null,80,22,45,50]
["Ole Gudbrand Kihle Gravermoen",1998,"Soknedalen IL","Flying Team Vikersund",172,20,16,16,20,20,22,null,24,15,8,9,2]
["Peder Skjæret Strømhaug",1998,"Folldal IL","NTG",165,null,null,null,null,null,null,null,60,40,29,36]
["Sander Bjørndalen",1999,"Heddal IL","Team Telemark Hopp",154,15,14,18,null,null,null,2,12,18,12,11,4,null,9,13,null,null,16,10]
["Peder Isaksen Fossum",1998,"Byåsen IL","Trønderhopp",148,null,null,null,null,null,6,4,null,null,18,7,1,null,14,12,15,null,null,null,20,14,24,13]
["Sigve Evensen",1998,"Moelven IL","NTG",140,null,null,null,null,null,null,3,5,5,null,null,null,10,4,7,18,13,null,null,18,29,13,15]
["Sølve Jokerud Strand",2000,"Vikersund IF","Flying Team Vikersund",120,36,null,null,null,null,null,null,40,29,null,null,15]
["Fredrik Gran",1998,"Byåsen IL","Trønderhopp",115,null,null,null,null,null,null,null,null,null,null,null,null,null,8,22,15,16,null,null,null,null,32,22]
["Ole Andreas Skatvedt",1965,"Trøgstad Skiklubb"," ",112,29,26,32,null,null,3,22]
["Tor Ole Bjerkan",1999,"Steinkjer Skiklubb",null,111,null,null,null,null,null,null,null,null,null,null,null,null,null,15,20,40,36]
["Martin Sommerstad",1998,"Raufoss IL","NTG",109,null,null,null,null,null,null,null,null,null,null,null,29,80]
["Tobias Haugelien",1999,"Ringkollen Skiklubb","Team Telemark Hopp",107,13,11,11,12,13,null,null,3,6,6,6,null,null,3,6,null,null,9,8]
["Stian Danielsen",1996,"Alta IF","Trønderhopp",100,null,null,null,null,null,null,null,null,null,null,null,100]
["Johannes Pettersen",1998,"Tromsø Skiklub","Trønderhopp",100,null,null,null,null,null,null,null,null,null,null,null,50,50]
["Lars Ivar Skårseth",null,"Sør ÅL IL","NTG",100,null,null,null,26,45,null,null,null,null,null,null,null,null,null,null,29]
["Tor Kristian Haug",1991,"Skotfoss Turn & IF"," ",97,null,null,null,null,null,null,null,null,null,null,null,null,20,24,29,null,24]
["August Elvevold",1996,"Tromsø Skiklub","Trønderhopp",95,null,null,null,null,null,null,null,null,null,null,null,null,null,null,null,13,20,null,null,null,null,40,22]
["Sindre Åsen",1999,"Oddersjaa SSK","NTG",87,null,null,null,null,null,null,null,9,7,null,null,null,12,11,10,12,14,null,null,12]
["Jarle Eikehaug",1996,"Ørn IF",null,81,null,null,null,null,null,null,null,null,null,null,null,null,null,null,null,null,null,null,null,null,null,45,36]
["Jørgen Oliver Strøm",2000,"Alta IF","Hedmarkhopp",75,null,null,null,null,null,60,15]
["Geir Vethe",1977,"Kolbukmeratene IL"," ",73,14,null,10,11,12,null,null,4,4,7,11]
["Simen Aasen Markeng",2002,"Lensbygda Sp.klubb",null,71,null,null,null,null,null,15,6,null,null,null,null,null,null,null,null,null,null,18,32]
["Mats Jakob Kvernmo",1996,"Steinkjer Skiklubb","Trønderhopp",69,null,null,null,null,null,null,null,null,null,null,null,null,11,null,null,10,12,null,null,null,null,14,22]
["Harald Derås Høgden",1999,"Namdalseid IL",null,68,null,null,null,null,null,null,null,null,null,null,null,22,24,null,null,22]
["Ola Stenumgaard",1999,"Sør-Fron IL","Trønderhopp",61,null,null,null,null,null,null,null,null,null,null,null,null,8,null,null,5,6,null,null,null,null,20,22]
["Steffen Jeremiassen",1997,"Skimt IL","Kollenhopp",60,null,null,null,null,null,null,null,null,null,null,null,null,null,null,null,null,null,36,24]
["Patrick Larsen",1982,"Pors IF","Team Telemark Hopp",56,null,null,null,null,null,null,null,22,null,14,12,8]
["Kritian Forseth Karlsen",1998,"Rognan IL","Trønderhopp",55,null,null,null,null,null,null,null,null,null,null,null,null,null,null,null,null,null,null,null,null,null,29,26]
["Leif Torbjørn Næsvold",1998,"Røykenhopp","Flying Team Vikersund",50,null,null,null,null,null,50]
["Olav Dvergsdal Prestegård",2001,"Vestre Aker SK","Kollenhopp",44,null,12,12,null,null,null,null,9,11]
["Jo Rømme Mellingsæter",2000,"Orkdal IL",null,43,null,null,null,null,null,null,null,null,null,null,null,null,13,null,null,8,22]
["Ruben Skorstad",2000,"Byåsen IL",null,{"$f":"SUM(F66:AB66)","v":43},null,null,null,null,null,null,null,null,null,null,null,null,null,null,null,11,32]
["Jens Gaarder",2000,"Raufoss IL",null,43,null,null,null,null,null,null,null,null,null,null,null,14,null,null,null,null,null,null,29]
["Henrik Haave",2000,"Nordre Land IL","NTG",39,null,null,null,null,null,8,8,13,10]
["Magnus Knutsen",1999,"Furnes Skiløperforening","Hedmarkhopp",39,null,null,null,null,null,null,null,null,null,null,null,null,null,null,null,null,null,24,15]
["Sivert Grande",1996,"Steinkjer Skiklubb","Trønderhopp",39,null,null,null,null,null,null,null,null,null,null,null,null,null,null,null,6,9,null,null,null,null,12,12]
["Erik Pettersen Guhnfeldt",1998,"Gjerpenkollen Hoppklubb","Flying Team Vikersund",37,24,null,null,null,null,null,null,null,null,null,null,null,null,5,8]
["Alexander Røshol Johnson",1998,"Molde og Omegn IF","NTG",36,null,null,null,18,11,null,null,null,null,null,null,null,null,null,null,null,null,null,null,null,null,null,7]
["Gaute Laeskogen",2000,"Raufoss IL",null,34,null,null,null,null,null,null,null,null,null,null,null,16,null,null,null,null,null,null,18]
["Bjørn Iver Restad",1993,"Leik IL","Trønderhopp",27,null,null,null,null,null,null,null,null,null,null,null,13,null,null,null,9,5]
["Martin Wohlen",1997,"Steinkjer Skiklubb","Trønderhopp",27,null,null,null,null,null,null,null,null,null,null,null,null,null,null,null,null,8,null,null,null,null,11,8]
["Simen Kvarstad",2000,"Byåsen IL","Trønderhopp",26,null,null,null,null,null,null,null,null,null,null,null,null,26]
["Anders Pettersen Guhnfeldt",1998,"Gjerpenkollen Hoppklubb","Flying Team Vikersund",22,22]
["Morten Robsahm  Kjølberg",1999,"Asker Skiklubb","Kollenhopp",21,null,null,null,null,null,null,null,15,3,null,null,3]
["Vegard Tiller",1998,"Moelven IL","NTG",21,null,null,null,null,null,null,null,null,null,null,null,null,null,10,11]
["Ole Henning Holt",1967,"Sannidal IL","Team Telemark Hopp",20,null,null,null,null,null,null,null,null,20]
["Øyvind Straumsheim",1998,"Molde og Omegn IF",null,19,null,null,null,null,null,null,null,null,null,null,null,null,null,null,null,null,null,null,null,null,null,10,9]
["Erik Hovdenak",2001,"Molde og Omegn IF",null,19,null,null,null,null,null,null,null,null,null,null,null,null,null,null,null,null,null,null,null,null,null,9,10]
["Anders Dyrendahl",2000,"Byåsen IL",null,17,null,null,null,null,null,null,null,null,null,null,null,null,null,null,null,7,10]
["Esben Alexander Johansen Amble",2001,"Ullensaker Skiklubb",null,16,null,null,null,null,null,9,7]
["Michael Alderin Bergh",1999,"Ullensaker Skiklubb","Kollenhopp",15,null,null,null,null,null,null,null,7,8]
["Haakon Norseng",1993,"Ivrig IL","Flying Team Vikersund",15,null,null,null,null,null,null,null,6,9]
["Alexander Laren",2000,"Botne SK","Flying Team Vikersund",15,null,null,null,null,null,null,null,null,null,null,null,null,null,6,9]
["Espen Olsby",1994,"Lensbygda Sp.klubb",null,15,null,null,null,null,null,null,null,null,null,null,null,null,null,null,null,null,null,15]
["Henrik Fretheim",1993,"Kongsberg IF","Flying Team Vikersund",15,null,null,null,null,null,null,null,null,null,null,null,null,null,null,null,null,null,8,7]
["Aleksander Skoglund",1999,"Molde og Omegn IF",null,14,null,null,null,null,null,null,null,null,null,null,null,null,null,null,null,null,null,null,null,null,null,null,14]
["Andreas Skoglund",2001,"Molde og Omegn IF",null,11,null,null,null,null,null,null,null,null,null,null,null,null,null,null,null,null,null,null,null,null,null,null,11]

{"sheet":"Damer A","index":5,"n_rows":3,"n_cols":9,"rows_kept":3,"cut":false,"hidden":false,"merged":[]}
["Navn","F.år","Klubb","Team","Sum","Midtstubakken 16.01","Midtstubakken 17.01","Bjørklibakken 27.02","Bjørklibakken 28.02"]
["Ingrid Eggen",1999,"IL Nansen","NTG",{"$f":"SUM(F2:M2)","v":360},80,80,100,100]
["Ingebjørg Bråten",1999,"Etnedal ","NTG",{"$f":"SUM(F3:M3)","v":200},100,100]